bitfinex/quotes_SOLUSD_20250401
["timestamp","ask_amount","ask_price","bid_price","bid_amount"]
[1743548387716,7.8851,126.82,126.78,0.03]
[1743548387924,15.48658765,126.81,126.78,0.03]
[1743548388206,23.37168765,126.82,126.78,0.03]
[1743548391211,23.37168765,126.82,126.78,88.7246]
[1743548391611,23.37168765,126.82,126.78,80.837]
[1743548391808,23.37168765,126.82,126.78,88.7246]
[1743548392199,23.37168765,126.82,126.78,80.837]
[1743548392401,15.48658765,126.81,126.78,80.837]
[1743548393093,15.48658765,126.8,126.78,80.837]
[1743548393294,15.48658765,126.79,126.78,80.837]
[1743548396013,23.37338765,126.8,126.78,80.837]
[1743548397003,23.37338765,126.8,126.78,0.03]
[1743548400719,15.48658765,126.8,126.78,0.03]
[1743548401024,23.37178765,126.82,126.78,0.03]
[1743548401200,15.48658765,126.84,126.79,6.3344]
[1743548401395,7.8833,126.85,126.79,6.3344]
[1743548401593,22.26658765,126.85,126.79,6.3344]
[1743548401794,15.48658765,126.83,126.79,88.7172]
[1743548402596,15.48658765,126.82,126.79,88.7172]
[1743548402799,7.8839,126.84,126.79,88.7172]
[1743548402997,15.48658765,126.83,126.79,88.7172]
[1743548403425,15.48658765,126.82,126.79,88.7172]
[1743548404215,15.48658765,126.82,126.79,96.6041]
[1743548404708,22.26658765,126.83,126.79,96.6041]
[1743548405017,30.15108765,126.83,126.79,96.6041]
[1743548405402,22.26658765,126.83,126.79,96.6041]
[1743548405608,6.78,126.83,126.79,96.6041]
[1743548405918,15.48658765,126.85,126.79,116.3217]
[1743548406115,15.48658765,126.85,126.8,18.64964886]
[1743548406313,23.36998765,126.85,126.8,18.64964886]
[1743548406828,15.48658765,126.83,126.79,88.7172]
[1743548407615,7.8851,126.82,126.79,88.7172]
[1743548407820,23.37138765,126.83,126.79,96.6042]
[1743548408430,15.48658765,126.82,126.79,88.7172]
[1743548408727,15.48658765,126.81,126.79,80.807]
[1743548409830,23.37288765,126.81,126.79,80.807]
[1743548412129,23.37188765,126.82,126.79,80.807]
[1743548413132,15.48658765,126.81,126.79,80.807]
[1743548414034,15.48658765,126.82,126.79,88.6938]
[1743548414225,15.48658765,126.83,126.79,88.6938]
[1743548416925,23.37108765,126.83,126.79,88.6938]
[1743548423235,23.37108765,126.83,126.79,80.807]
[1743548424738,23.37188765,126.82,126.79,80.807]
[1743548427638,15.48658765,126.81,126.79,80.807]
[1743548428131,15.48658765,126.8,126.79,80.807]
[1743548429335,15.48658765,126.8,126.78,0.03]
[1743548429518,15.48658765,126.79,126.78,0.03]
[1743548429713,23.37358765,126.79,126.78,0.03]
[1743548431439,23.65791079,126.79,126.78,0.03]
[1743548433432,25.19431079,126.79,126.78,0.03]
[1743548437153,23.37358765,126.79,126.78,0.03]
[1743548446462,23.65791079,126.79,126.78,0.03]
[1743548446759,20.28432314,126.77,126.76,0.03]
[1743548447064,42.55091079,126.77,126.76,0.03]
[1743548447946,50.43921079,126.77,126.76,0.0001]
[1743548448159,69.08885965,126.77,126.76,0.0001]
[1743548460674,50.43921079,126.77,126.76,0.0001]
[1743548461580,7.9503,126.79,126.76,0.0001]
[1743548461958,0.063,126.79,126.76,6.4235]
[1743548462873,0.063,126.79,126.77,18.64964886]
[1743548463192,0.063,126.79,126.78,20.21344886]
[1743548463776,0.063,126.79,126.78,28.10104886]
[1743548466279,0.063,126.79,126.78,108.90804886]
[1743548466464,0.063,126.79,126.78,109.192372]
[1743548466670,15.54958765,126.86,126.8,18.64964886]
[1743548466864,15.54958765,126.86,126.8,99.45664886]
[1743548467180,0.063,126.86,126.8,99.45664886]
[1743548467887,0.063,126.86,126.81,7.8858]
[1743548468461,15.54958765,126.86,126.81,7.8858]
[1743548468676,15.48658765,126.83,126.8,80.807]
[1743548469077,15.48658765,126.82,126.8,80.807]
[1743548469986,23.37198765,126.82,126.8,80.807]
[1743548470572,15.48658765,126.82,126.8,80.807]
[1743548470980,23.37178765,126.82,126.8,80.807]
[1743548471380,15.48658765,126.82,126.8,80.807]
[1743548472581,15.48658765,126.83,126.8,80.807]
[1743548473789,7.884,126.84,126.8,80.807]
[1743548473790,15.48658765,126.82,126.8,80.807]
[1743548474100,15.48658765,126.81,126.78,80.807]
[1743548474270,15.48658765,126.79,126.78,80.807]
[1743548474583,15.48658765,126.79,126.76,86.8098]
[1743548475567,23.37398765,126.79,126.76,86.8098]
[1743548475975,15.48658765,126.78,126.76,86.8098]
[1743548476174,23.37398765,126.79,126.76,86.8098]
[1743548477894,15.48658765,126.79,126.76,86.8098]
[1743548478482,15.48658765,126.8,126.76,94.6986]
[1743548479502,30.15258765,126.81,126.76,94.6986]
[1743548480772,22.26658765,126.81,126.76,94.6986]
[1743548481400,30.15238765,126.81,126.76,94.6986]
[1743548482197,15.48658765,126.8,126.76,86.8098]
[1743548483104,23.37328765,126.8,126.76,86.8098]
[1743548486101,15.48658765,126.78,126.76,86.8098]
[1743548486284,15.48658765,126.77,126.76,80.8071]
[1743548488009,15.48658765,126.77,126.76,0.0001]
[1743548488177,30.15488765,126.77,126.76,0.0001]
[1743548490100,0.28432314,126.76,126.75,0.0101]
[1743548490299,23.65981079,126.76,126.75,0.0101]
[1743548500410,23.72281079,126.76,126.75,0.0101]
[1743548501192,8.23622314,126.76,126.75,0.0101]
[1743548501397,23.43848765,126.76,126.75,0.0101]
[1743548501599,30.21848765,126.76,126.75,0.0101]
[1743548507492,30.50281079,126.76,126.75,0.0101]
[1743548509816,30.21848765,126.76,126.75,0.0101]
[1743548510911,23.43848765,126.76,126.75,0.0101]
[1743548511112,30.21848765,126.76,126.75,0.0101]
[1743548511320,23.43848765,126.76,126.75,0.0101]
[1743548511528,30.21848765,126.76,126.75,0.0101]
[1743548512926,30.50281079,126.76,126.75,0.0101]
[1743548514423,23.72281079,126.76,126.75,0.0101]
[1743548514625,30.50281079,126.76,126.75,0.0101]
[1743548515922,15.01622314,126.76,126.75,0.0101]
[1743548516224,30.50281079,126.76,126.75,0.0101]
[1743548518120,23.72281079,126.76,126.75,0.0101]
[1743548518327,30.50281079,126.76,126.75,0.0101]
[1743548525835,30.21848765,126.76,126.75,0.0101]
[1743548526629,0.063,126.76,126.75,80.8171]
[1743548527935,0.063,126.76,126.75,88.7066]
[1743548530134,0.063,126.76,126.75,80.8171]
[1743548532721,15.54958765,126.76,126.75,80.8171]
[1743548534733,0.063,126.76,126.75,80.8171]
[1743548534933,23.43848765,126.76,126.75,0.0101]
[1743548540722,0.063,126.76,126.75,0.0101]
[1743548543649,15.54958765,126.76,126.75,0.0101]
[1743548546046,23.43848765,126.76,126.75,0.0101]
[1743548548650,30.21848765,126.76,126.75,0.0101]
[1743548548852,30.50281079,126.76,126.75,0.0101]
[1743548556737,20.0,126.73,126.69,80.807]
[1743548556936,15.48658765,126.7,126.66,88.7319]
[1743548557239,22.26658765,126.71,126.66,88.7319]
[1743548557446,6.1101,126.74,126.66,88.7319]
[1743548557447,15.48658765,126.72,126.66,88.7319]
[1743548557666,6.78,126.74,126.66,88.7319]
[1743548557842,22.26658765,126.74,126.68,7.928]
[1743548558752,22.26658765,126.74,126.69,7.8932]
[1743548558941,22.26658765,126.74,126.69,88.7002]
[1743548561855,15.48658765,126.74,126.69,88.7002]
[1743548563634,15.48658765,126.75,126.7,18.64964886]
[1743548563965,14.7321,126.76,126.7,99.45664886]
[1743548563966,0.063,126.76,126.7,99.45664886]
[1743548564135,15.54958765,126.76,126.7,99.45664886]
[1743548564662,23.43848765,126.76,126.71,7.892]
[1743548565037,7.9519,126.76,126.71,7.892]
[1743548565238,23.43848765,126.76,126.71,7.892]
[1743548567250,23.43848765,126.76,126.71,88.699]
[1743548570364,15.54958765,126.76,126.71,88.699]
[1743548570567,0.063,126.76,126.73,0.28432314]
[1743548570746,0.063,126.76,126.74,18.64964886]
[1743548572356,0.063,126.76,126.75,7.8895]
[1743548574248,0.063,126.76,126.74,80.807]
[1743548584357,15.54958765,126.76,126.74,80.807]
[1743548584777,15.54958765,126.76,126.72,80.807]
[1743548584973,15.48658765,126.75,126.72,80.807]
[1743548585172,0.063,126.76,126.72,80.807]
[1743548585365,23.37648765,126.75,126.72,80.807]
[1743548586075,15.48658765,126.74,126.72,80.807]
[1743548587580,23.37688765,126.74,126.72,80.807]
[1743548590289,30.15688765,126.74,126.72,80.807]
[1743548590679,30.15688765,126.74,126.71,0.03]
[1743548591591,15.48658765,126.73,126.71,0.03]
[1743548592803,23.37738765,126.73,126.71,0.03]
[1743548597795,7.8908,126.73,126.71,0.03]
[1743548598476,23.37738765,126.73,126.71,0.03]
[1743548604908,15.48658765,126.73,126.71,0.03]
[1743548607018,15.48658765,126.75,126.71,0.03]
[1743548607312,0.063,126.76,126.71,0.03]
[1743548607797,15.54958765,126.76,126.71,0.03]
[1743548608690,23.43848765,126.76,126.71,0.03]
[1743548608896,23.43848765,126.76,126.71,7.922]
[1743548617009,23.43848765,126.76,126.71,88.729]
[1743548621916,15.48658765,126.75,126.71,88.729]
[1743548623585,15.48658765,126.75,126.71,80.837]
[1743548623784,15.48658765,126.74,126.71,80.837]
[1743548625411,23.37628765,126.75,126.71,80.837]
[1743548627597,23.37628765,126.75,126.71,88.7288]
[1743548628903,0.063,126.76,126.71,88.7288]
[1743548638096,15.54958765,126.76,126.71,88.7288]
[1743548638409,15.48658765,126.75,126.71,80.837]
[1743548638602,15.48658765,126.74,126.71,80.837]
[1743548638825,15.48658765,126.73,126.71,80.837]
[1743548639126,15.48658765,126.73,126.71,0.03]
[1743548639819,15.48658765,126.72,126.71,0.03]
[1743548640196,23.37798765,126.72,126.71,0.03]
[1743548640904,30.15798765,126.72,126.71,0.03]
[1743548642016,6.78,126.72,126.71,0.03]
[1743548642917,23.37668765,126.74,126.71,0.03]
[1743548648030,15.48658765,126.73,126.71,0.03]
[1743548648327,15.48658765,126.72,126.71,0.03]
[1743548649427,23.37798765,126.72,126.71,0.03]
[1743548650316,23.37758765,126.73,126.71,0.03]
[1743548651421,15.48658765,126.72,126.71,0.03]
[1743548651622,15.48658765,126.73,126.71,0.03]
[1743548652726,23.37778765,126.73,126.71,0.03]
[1743548652922,6.78,126.73,126.71,0.03]
[1743548653129,7.8903,126.74,126.71,0.03]
[1743548653303,14.6703,126.74,126.71,0.03]
[1743548653923,6.843,126.75,126.71,0.03]
[1743548654606,22.32958765,126.75,126.71,0.03]
[1743548654805,30.21928765,126.75,126.71,0.03]
[1743548656625,23.37698765,126.74,126.71,0.03]
[1743548661035,30.21938765,126.75,126.71,0.03]
[1743548661230,15.48658765,126.73,126.71,0.03]
[1743548661732,15.48658765,126.74,126.71,0.03]
[1743548663732,15.48658765,126.72,126.71,0.03]
[1743548666137,23.37798765,126.72,126.71,0.03]
[1743548668035,23.66231079,126.72,126.71,0.03]
[1743548668343,85.60866139,126.72,126.71,0.03]
[1743548670537,0.28432314,126.71,126.66,0.03]
[1743548670842,15.48658765,126.69,126.66,0.03]
[1743548671027,15.48658765,126.68,126.66,0.03]
[1743548672637,7.8945,126.67,126.66,0.03]
[1743548675248,15.48658765,126.67,126.66,0.03]
[1743548677148,23.38108765,126.67,126.66,0.03]
[1743548677845,23.66541079,126.67,126.66,0.03]
[1743548679444,85.61176139,126.67,126.66,0.0001]
[1743548679653,105.85101025,126.67,126.66,0.0001]
[1743548680153,43.90465965,126.67,126.66,0.0001]
[1743548681050,25.25501079,126.67,126.66,0.0001]
[1743548683450,7.8939,126.68,126.66,0.0001]
[1743548683751,15.48658765,126.67,126.66,0.0001]
[1743548684249,15.77091079,126.67,126.66,0.0001]
[1743548686354,23.66541079,126.67,126.66,0.0001]
[1743548686556,105.61176139,126.67,126.66,0.0001]
[1743548686748,105.81421025,126.67,126.66,0.0001]
[1743548687260,43.86785965,126.67,126.66,0.0001]
[1743548688458,105.81421025,126.67,126.66,0.0001]
[1743548688656,43.86785965,126.67,126.66,0.0001]
[1743548689063,0.28432314,126.63,126.62,0.03]
[1743548689560,15.77091079,126.63,126.62,0.03]
[1743548690875,23.66791079,126.63,126.62,0.03]
[1743548694851,15.77091079,126.63,126.62,0.03]
[1743548695467,23.66791079,126.63,126.62,0.03]
[1743548695965,23.38358765,126.63,126.62,0.03]
[1743548696162,15.48658765,126.63,126.62,0.03]
[1743548697746,23.38358765,126.63,126.62,0.03]
[1743548698476,7.897,126.63,126.62,0.03]
[1743548698651,23.38358765,126.63,126.62,0.03]
[1743548700382,7.897,126.63,126.62,0.03]
[1743548700551,23.38358765,126.63,126.62,0.03]
[1743548701173,35.48658765,126.64,126.62,0.03]
[1743548701964,20.0,126.64,126.62,0.03]
[1743548703373,0.063,126.67,126.62,0.03]
[1743548703569,0.063,126.67,126.62,80.837]
[1743548703570,15.48658765,126.65,126.62,80.837]
[1743548704682,15.48658765,126.64,126.62,80.837]
[1743548704969,15.48658765,126.63,126.62,0.03]
[1743548705871,15.48658765,126.64,126.62,0.03]
[1743548707949,15.48658765,126.65,126.62,0.03]
[1743548709676,15.48658765,126.64,126.62,0.03]
[1743548710282,15.48658765,126.65,126.62,0.03]
[1743548712791,15.48658765,126.64,126.62,0.03]
[1743548713284,15.48658765,126.63,126.62,0.03]
[1743548714182,15.48658765,126.64,126.62,0.03]
[1743548714375,35.48658765,126.64,126.62,0.03]
[1743548715887,15.54958765,126.65,126.62,0.03]
[1743548717785,0.063,126.65,126.62,0.03]
[1743548721687,15.54958765,126.65,126.62,0.03]
[1743548722189,23.44538765,126.65,126.62,0.03]
[1743548723681,0.063,126.65,126.62,80.837]
[1743548723873,0.063,126.65,126.62,88.8613]
[1743548725787,0.063,126.65,126.63,7.897]
[1743548727997,0.063,126.65,126.62,96.7587]
[1743548729286,0.063,126.65,126.62,88.8613]
[1743548730191,15.54958765,126.65,126.62,80.837]
[1743548730393,0.063,126.65,126.62,80.837]
[1743548730587,0.063,126.65,126.62,88.7345]
[1743548730895,0.063,126.65,126.62,80.837]
[1743548731582,0.063,126.65,126.62,88.7345]
[1743548736998,0.063,126.65,126.62,80.837]
[1743548738394,0.063,126.65,126.62,88.7345]
[1743548751009,0.063,126.65,126.62,80.837]
[1743548756593,0.063,126.65,126.63,18.64964886]
[1743548757202,0.063,126.65,126.63,26.54604886]
[1743548761721,0.063,126.65,126.62,88.7343]
[1743548761909,15.54958765,126.65,126.62,80.837]
[1743548762622,15.48658765,126.64,126.62,0.03]
[1743548763918,23.38358765,126.63,126.62,0.03]
[1743548765501,30.50791079,126.63,126.62,0.03]
[1743548767214,49.15755965,126.63,126.62,0.03]
[1743548769208,0.14216157,126.57,126.53,0.03]
[1743548769407,77.43293825,126.54,126.53,0.03]
[1743548769824,15.48658765,126.54,126.53,0.03]
[1743548771114,22.38658765,126.54,126.53,0.03]
[1743548771426,23.38918765,126.54,126.53,0.03]
[1743548771720,92.51986139,126.54,126.53,0.03]
[1743548772624,92.51986139,126.54,126.49,0.03]
[1743548772625,20.0,126.51,126.49,0.03]
[1743548772807,15.48658765,126.5,126.49,0.03]
[1743548774604,23.39168765,126.5,126.49,0.03]
[1743548775526,30.57601079,126.5,126.49,0.03]
[1743548778613,20.0,126.48,126.47,2.8713806]
[1743548778917,35.48658765,126.48,126.47,2.8713806]
[1743548779322,99.35796139,126.48,126.47,2.8713806]
[1743548779548,107.26426139,126.48,126.47,2.8713806]
[1743548780039,45.31791079,126.48,126.47,2.8713806]
[1743548781027,107.26426139,126.48,126.47,2.8713806]
[1743548782114,37.12728765,126.48,126.47,2.8713806]
[1743548782618,45.03358765,126.48,126.47,2.8713806]
[1743548783119,37.12728765,126.48,126.47,2.8713806]
[1743548784234,35.48658765,126.48,126.47,2.8713806]
[1743548785155,43.39288765,126.48,126.47,2.8713806]
[1743548785948,43.67721079,126.48,126.47,2.8713806]
[1743548786253,43.67721079,126.48,126.47,2.9013806]
[1743548786935,35.77091079,126.48,126.47,2.9013806]
[1743548787232,43.67721079,126.48,126.47,2.9013806]
[1743548787751,124.27321025,126.48,126.47,2.9013806]
[1743548788147,18.933972,126.47,126.4,0.03]
[1743548788322,15.48658765,126.42,126.4,0.03]
[1743548789421,15.48658765,126.42,126.4,7.9412]
[1743548790339,15.48658765,126.43,126.4,0.03]
[1743548795853,22.36658765,126.44,126.4,0.03]
[1743548796234,8.19282314,126.45,126.4,0.03]
[1743548796235,15.48658765,126.45,126.4,0.03]
[1743548796434,15.48658765,126.45,126.4,80.837]
[1743548797238,15.48658765,126.45,126.41,7.9107]
[1743548798848,26.88,126.47,126.41,88.7177]
[1743548799051,22.36658765,126.47,126.41,88.7177]
[1743548800256,22.36658765,126.47,126.41,108.4946]
[1743548800963,15.48658765,126.45,126.41,108.4946]
[1743548801262,15.48658765,126.46,126.41,108.4946]
[1743548802159,22.36658765,126.47,126.41,108.4946]
[1743548802361,15.48658765,126.46,126.41,108.4946]
[1743548803142,22.36658765,126.47,126.41,108.4946]
[1743548804459,30.27358765,126.47,126.41,108.4946]
[1743548804663,15.48658765,126.47,126.41,108.4946]
[1743548805963,15.48658765,126.49,126.43,1.639]
[1743548806264,15.48658765,126.49,126.44,7.9088]
[1743548806441,251.17198765,126.5,126.44,7.9088]
[1743548806640,243.26658765,126.5,126.44,7.9088]
[1743548806856,243.26658765,126.5,126.44,27.681]
[1743548807047,243.26658765,126.5,126.44,108.488]
[1743548808763,15.48658765,126.52,126.45,18.64964886]
[1743548808956,15.48658765,126.52,126.45,99.45664886]
[1743548809553,23.45308765,126.53,126.45,99.45664886]
[1743548809754,30.35308765,126.53,126.46,6.2637]
[1743548810263,0.063,126.48,126.47,18.64964886]
[1743548810471,0.063,126.48,126.47,99.45664886]
[1743548810766,0.063,126.48,126.47,107.36364886]
[1743548811176,0.063,126.48,126.47,110.47947489]
[1743548811387,0.063,126.48,126.47,107.36364886]
[1743548822394,0.063,126.48,126.47,80.807]
[1743548833000,0.063,126.48,126.47,88.714]
[1743548833577,0.063,126.48,126.47,80.807]
[1743548858725,0.063,126.48,126.47,80.837]
[1743548860923,15.54958765,126.48,126.47,80.837]
[1743548861131,0.063,126.48,126.47,80.837]
[1743548861322,7.9693,126.48,126.47,80.837]
[1743548863429,7.9693,126.48,126.47,0.03]
[1743548864011,23.45588765,126.48,126.47,0.03]
[1743548865223,7.9693,126.48,126.47,0.03]
[1743548866333,23.45588765,126.48,126.47,0.03]
[1743548878235,30.25588765,126.48,126.47,0.03]
[1743548890735,92.48656139,126.48,126.47,0.03]
[1743548891140,112.25246139,126.48,126.44,80.807]
[1743548891342,15.48658765,126.45,126.43,80.837]
[1743548892652,7.9088,126.44,126.43,80.837]
[1743548892832,23.39538765,126.44,126.43,0.03]
[1743548899465,30.19538765,126.44,126.43,0.03]
[1743548901158,14.7088,126.44,126.43,0.03]
[1743548901354,30.19538765,126.44,126.43,0.03]
[1743548905059,30.19538765,126.44,126.37,80.807]
[1743548905060,20.0,126.41,126.37,80.807]
[1743548905250,15.48658765,126.38,126.34,80.837]
[1743548905447,15.48658765,126.36,126.34,80.837]
[1743548906243,15.48658765,126.35,126.34,80.837]
[1743548906738,15.77091079,126.35,126.34,0.03]
[1743548907063,23.68541079,126.35,126.34,0.03]
[1743548907262,23.68541079,126.35,126.34,0.0001]
[1743548907846,30.48541079,126.35,126.34,0.0001]
[1743548908972,22.57091079,126.35,126.34,0.0001]
[1743548910569,49.13505965,126.35,126.34,0.0001]
[1743548911065,0.28432314,126.31,126.3,0.03]
[1743548911272,42.57091079,126.31,126.3,0.03]
[1743548911649,35.77091079,126.31,126.3,0.03]
[1743548912153,42.28658765,126.31,126.3,0.03]
[1743548912471,35.48658765,126.31,126.3,0.03]
[1743548917161,125.89971025,126.31,126.3,0.03]
[1743548917360,15.48658765,126.25,126.22,83.6783806]
[1743548917563,22.30658765,126.25,126.22,91.6007806]
[1743548917763,15.48658765,126.25,126.22,91.6007806]
[1743548918255,22.32658765,126.26,126.22,91.6007806]
[1743548919588,6.84,126.3,126.23,18.64964886]
[1743548919768,15.48658765,126.29,126.23,99.45664886]
[1743548920280,15.48658765,126.27,126.23,80.807]
[1743548920582,15.48658765,126.26,126.23,80.807]
[1743548921078,15.48658765,126.24,126.22,2.8713806]
[1743548921280,22.32658765,126.23,126.22,2.8713806]
[1743548921467,15.48658765,126.23,126.22,2.8713806]
[1743548921663,15.48658765,126.24,126.22,2.8713806]
[1743548921872,42.32658765,126.25,126.22,83.6783806]
[1743548922263,15.48658765,126.24,126.22,83.6783806]
[1743548923469,22.32658765,126.25,126.22,83.6783806]
[1743548925585,15.48658765,126.24,126.22,83.6783806]
[1743548928772,30.24738765,126.25,126.22,83.6783806]
[1743548930486,19.93916157,126.29,126.22,4.5123806]
[1743548930487,19.797,126.29,126.22,4.5123806]
[1743548930690,15.48658765,126.27,126.22,18.5006806]
[1743548931188,15.48658765,126.27,126.22,18.4706806]
[1743548931992,23.40618765,126.27,126.22,18.4706806]
[1743548932294,15.48658765,126.26,126.22,18.4706806]
[1743548932587,15.48658765,126.26,126.22,99.3706806]
[1743548932959,23.40688765,126.26,126.22,99.3706806]
[1743548934768,23.40688765,126.26,126.22,78.50475193]
[1743548935682,23.40688765,126.26,126.22,86.42735193]
[1743548936482,15.48658765,126.26,126.22,86.42735193]
[1743548936785,23.40638765,126.27,126.22,86.42735193]
[1743548937478,15.48658765,126.27,126.22,86.42735193]
[1743548937662,23.40578765,126.28,126.22,94.38785193]
[1743548937862,30.24498765,126.29,126.22,94.38785193]
[1743548938683,15.48658765,126.28,126.22,94.38785193]
[1743548938883,23.40558765,126.28,126.22,94.38785193]
[1743548940787,1.5904,126.3,126.23,18.64964886]
[1743548940994,15.54958765,126.3,126.23,18.64964886]
[1743548941466,15.48658765,126.29,126.23,18.64964886]
[1743548942763,15.48658765,126.29,126.24,7.9214]
[1743548945572,15.48658765,126.29,126.24,86.42615193]
[1743548946259,15.48658765,126.28,126.24,86.42615193]
[1743548946465,15.48658765,126.26,126.24,78.50475193]
[1743548946683,15.48658765,126.25,126.24,78.50475193]
[1743548948081,23.40738765,126.25,126.22,78.53475193]
[1743548948285,15.48658765,126.23,126.22,78.53475193]
[1743548950567,15.48658765,126.24,126.22,78.53475193]
[1743548952171,15.48658765,126.23,126.22,78.53475193]
[1743548952371,23.40858765,126.23,126.22,78.53475193]
[1743548957103,23.40858765,126.23,126.22,0.03]
[1743548958769,23.40858765,126.23,126.18,78.50475193]
[1743548958770,23.69291079,126.23,126.16,78.50475193]
[1743548958973,15.48658765,126.18,126.16,78.50475193]
[1743548959176,15.48658765,126.17,126.16,78.50475193]
[1743548959402,15.48658765,126.18,126.16,78.50475193]
[1743548960013,14.7442,126.2,126.16,78.50475193]
[1743548960197,15.48658765,126.19,126.16,86.43115193]
[1743548960380,15.48658765,126.22,126.16,86.43115193]
[1743548961096,15.48658765,126.23,126.16,106.24725193]
[1743548961301,15.48658765,126.22,126.16,106.24725193]
[1743548962318,22.32658765,126.24,126.18,1.5943]
[1743548963714,22.32658765,126.24,126.19,7.9245]
[1743548964011,15.48658765,126.23,126.19,86.42925193]
[1743548966208,22.32658765,126.24,126.19,86.42925193]
[1743548967409,6.84,126.24,126.19,86.42925193]
[1743548967810,6.84,126.24,126.19,106.24055193]
[1743548968210,6.903,126.24,126.19,106.24055193]
[1743548969722,22.38958765,126.24,126.19,106.24055193]
[1743548970024,6.903,126.24,126.19,106.24055193]
[1743548971194,22.38958765,126.24,126.19,106.24055193]
[1743548971820,0.063,126.24,126.2,18.933972]
[1743548972132,0.0001,126.24,126.23,6.112]
[1743548972293,0.063,126.3,126.24,78.50465193]
[1743548972294,15.54958765,126.3,126.24,78.50465193]
[1743548973195,15.48658765,126.26,126.24,78.50465193]
[1743548973505,15.48658765,126.25,126.24,78.50465193]
[1743548973823,15.48658765,126.26,126.24,86.42605193]
[1743548974296,22.34658765,126.27,126.24,86.42605193]
[1743548977519,6.86,126.27,126.24,86.42605193]
[1743548978102,0.063,126.3,126.25,18.64964886]
[1743548978721,15.48658765,126.29,126.24,86.42605193]
[1743548982836,0.063,126.3,126.25,18.64964886]
[1743548983138,15.54958765,126.3,126.25,18.64964886]
[1743548984714,23.46748765,126.3,126.24,106.22955193]
[1743548984915,15.48658765,126.29,126.24,106.22955193]
[1743548985632,23.46748765,126.3,126.24,106.22955193]
[1743548986038,15.48658765,126.29,126.24,86.42605193]
[1743548986343,15.48658765,126.28,126.24,78.50465193]
[1743548986809,15.48658765,126.28,126.24,86.42585193]
[1743548988014,23.40578765,126.28,126.24,78.50465193]
[1743548988536,15.48658765,126.27,126.24,78.50465193]
[1743548988732,15.48658765,126.26,126.22,7.9225]
[1743548989935,15.48658765,126.26,126.21,7.9233]
[1743548990232,23.40658765,126.27,126.24,80.9]
[1743548990446,23.40658765,126.27,126.21,88.8233]
[1743548993019,15.48658765,126.27,126.21,88.8233]
[1743548994417,15.48658765,126.27,126.21,88.8533]
[1743548994739,23.40618765,126.27,126.21,88.8533]
[1743548994931,15.48658765,126.27,126.21,88.8533]
[1743548995136,15.48658765,126.27,126.21,108.6615]
[1743548997140,23.40618765,126.27,126.21,108.6615]
[1743549005735,15.48658765,126.27,126.21,108.6615]
[1743549006135,30.22578765,126.28,126.22,18.64964886]
[1743549006335,20.063,126.29,126.22,18.64964886]
[1743549006930,27.9813,126.29,126.22,18.64964886]
[1743549007156,20.063,126.29,126.22,99.54964886]
[1743549008161,20.063,126.29,126.24,18.64964886]
[1743549008162,0.063,126.27,126.24,18.64964886]
[1743549008465,0.063,126.27,126.24,99.54964886]
[1743549009354,0.063,126.27,126.24,107.47054886]
[1743549014547,0.063,126.27,126.24,127.27404886]
[1743549018955,0.063,126.29,126.27,80.837]
[1743549019750,0.063,126.29,126.28,18.64964886]
[1743549020652,0.063,126.29,126.27,80.837]
[1743549021653,0.063,126.29,126.27,88.7563]
[1743549025363,0.063,126.29,126.27,80.837]
[1743549025661,0.063,126.29,126.27,88.7565]
[1743549029062,0.063,126.29,126.28,18.64964886]
[1743549030058,0.063,126.29,126.28,26.56854886]
[1743549033161,0.063,126.29,126.27,88.7562]
[1743549035365,0.063,126.29,126.28,18.64964886]
[1743549036469,0.063,126.29,126.28,99.48664886]
[1743549036874,0.063,126.29,126.28,107.40554886]
[1743549037164,0.0001,126.29,126.28,107.40554886]
[1743549037867,1.6376,126.34,126.3,80.7739]
[1743549038268,0.063,126.35,126.31,18.64964886]